Cogmind - Beta 17.1 @@@ ROGUE MODE // 2026.09.13 @ 21:33:08 Player: UnderDoug Result: Destroyed by S-10 Pest with Light Assault Rifle Performance ------------- Evolutions (0) 0 Regions Visited (2) 400 Robots Destroyed (30) 150 Value Destroyed (588) 588 Prototype IDs (0) 0 Alien Tech Used (0) 0 Bonus (0) 0 TOTAL SCORE: 1138 Bonus ------- None Cogmind --------- Core Integrity 0/250 Matter 280/300 Energy 125/125 System Corruption 0% Temperature Cool (3) Movement Walking (190) Ox1 Location -10/Mines Parts ------- > --- POWER (1) -------- Light Ion Engine > --- PROPULSION (2) --- Aluminum Leg Aluminum Leg > --- UTILITY (2) ------ Large Storage Unit Seismic Detector > --- WEAPON (2) ------- Small Laser Grenade Launcher > --- INVENTORY (15) --- Light Treads Light Treads Aluminum Leg Aluminum Leg Aluminum Leg Heat Sink Large Matter Pod (150) Seismic Detector ECM Suite Light Assault Rifle Mining Laser Signal Generator Peak State ------------ > --- POWER ------------ Light Nuclear Core > --- PROPULSION ------- Aluminum Leg Aluminum Leg > --- UTILITY ---------- Small Storage Unit Seismic Detector > --- WEAPON ----------- Light Assault Rifle Light Cannon > --- INVENTORY -------- Light Ion Engine Light Treads Light Treads Aluminum Leg Small Matter Pod Light Assault Rifle Grenade Launcher Mining Laser [Rating: 9] Favorites ----------- Power Light Ion Engine Engine Light Ion Engine Power Core Light Nuclear Core Propulsion Aluminum Leg Leg Aluminum Leg Utility Seismic Detector Device Seismic Detector Storage Large Storage Unit Weapon Light Assault Rifle Energy Gun Small Laser Ballistic Gun Light Assault Rifle Ballistic Cannon Light Cannon Launcher Grenade Launcher Special Weapon Mining Laser Build | -11 -10 -10 ------- Run | Yrd Mat Min Slots Evolved . | . . . Power . | . . . Propulsion . | . . . Utility . | . . . Weapon . | . . . Parts Attached 21 | 7 9 5 Power 4 | 1 2 1 Engine 3 | 1 1 1 Core 1 | . 1 . Reactor . | . . . Propulsion 7 | 2 3 2 Treads . | . . . Leg 7 | 2 3 2 Wheel . | . . . Hover . | . . . Flight . | . . . Utility 4 | 2 1 1 Device 2 | 1 . 1 Storage 2 | 1 1 . Processor . | . . . Hackware . | . . . Protection . | . . . Artifact . | . . . Weapon 6 | 2 3 1 Energy Gun 1 | . . 1 Energy Cannon . | . . . Ballistic Gun 2 | 2 . . Ballistic Cannon 1 | . 1 . Launcher 1 | . 1 . Special Weapon 1 | . 1 . Impact Weapon . | . . . Slashing Weapon . | . . . Piercing Weapon . | . . . Special Melee Weapon . | . . . Unidentified Prototypes . | . . . Parts Lost 5 | . 2 3 Power 2 | . 1 1 Propulsion 1 | . . 1 Utility . | . . . Weapon 2 | . 1 1 Highest Loss Streak 3 | . 2 3 To Critical Strikes . | . . . Average Backups 8 | 7 8 11 Power . | . . . Propulsion 4 | 3 3 5 Utility 2 | . 1 3 Weapon 2 | 1 2 2 Tool/Special . | . . . Unused Backups 14 | 1 5 8 Power 1 | 1 . . Propulsion 6 | . 2 4 Utility 5 | . 2 3 Weapon 2 | . 1 1 Tool/Special . | . . . Average Slot Usage (%) 99 | . 99 98 Engine 11 | . 10 12 Core 2 | . 3 . Leg 27 | . 28 27 Device 14 | . 14 14 Storage 14 | . 14 14 Energy Gun 1 | . . 8 Ballistic Gun 13 | . 14 13 Ballistic Cannon 10 | . 12 5 Peak Build Rating 9 | 8 9 8 Average Rating 7 | 6 7 7 On Entrance 5 | . 8 8 Avg Prop Armor Cover (%) . | . . . Naked Turns . | . . . Heaviest Build 28 | 11 28 28 Greatest Support 20 | 20 20 20 Greatest Overweight (x) 3 | 3 1 1 Average Overweight (x) . | . . 1 Largest Inventory Capacity 15 | 8 15 15 Average Capacity 11 | 7 11 15 Most Carried 13 | 8 12 13 Average Carried 8 | 7 8 11 Final Capacity 15 | 8 15 15 Final Carried 12 | 8 12 12 Class Distribution -------------------- 88% | Mutant 11% | Scavenger-Mutant Dominant Class ---------------- Mutant | -10/Materials Scavenger-Mutant | -10/Mines Resources | -11 -10 -10 ----------- Run | Yrd Mat Min Matter Collected 982 | 329 384 269 Remotely . | . . . Salvage Created 703 | 183 409 111 Parts 48 | 19 22 7 Haulers Intercepted 1 | . 1 . Recyclers Shooed 2 | . 1 1 Parts Field Recycled . | . . . Retrieved Matter . | . . . Parts Self-Destructed . | . . . Prevented . | . . . Parts Restored . | . . . Kills | -11 -10 -10 ------- Run | Yrd Mat Min Combat Hostiles Destroyed 16 | . 12 4 Guns 5 | . 3 2 Cannons 6 | . 6 . AOE 5 | . 3 2 Classes Destroyed 9 | 3 6 . Worker 2 | 2 . . Builder 1 | . 1 . Tunneler 6 | 5 . 1 Hauler 1 | . 1 . Recycler 1 | 1 . . Operator 1 | . 1 . Watcher 2 | . 2 . Swarmer 5 | . 3 2 Grunt 11 | . 9 2 Best Kill Streak 6 | 3 6 2 Combat Bots Only 3 | . 3 2 Max Kills in Single Turn 2 | 1 2 2 Gunslinging . | . . . Exploded 2 | . 1 2 Melee . | . . . Uniques/NPCs Destroyed . | . . . Combat | -11 -10 -10 -------- Run | Yrd Mat Min Hostile Shots Fired 111 | . 66 45 Missed 42 | . 22 20 Hits 69 | . 44 25 Projectile 69 | . 44 25 Critical Strikes 1 | . . 1 Damage Taken 876 | . 547 329 Core 252 | . 137 115 Absorbed by Shields . | . . . Core Remaining (%) 100 | 100 . . Volleys Fired 122 | 32 65 25 Largest 2 | 2 2 2 Hottest 130 | 40 130 70 Shots Fired 233 | 64 123 46 Gun 160 | 64 52 44 Cannon 60 | . 59 1 Launcher 12 | . 11 1 Special 1 | . 1 . Kinetic 200 | 64 111 25 Thermal 21 | . 1 20 Explosive 12 | . 11 1 Electromagnetic . | . . . Robot Hit Streak 9 | 8 7 9 Robot Miss Streak 5 | 5 5 3 Penetration Max . | . . . Secondary Targets 1 | . . 1 Max Gunslinging Chain 1 | . . 1 Shots Hit Robots 118 | 36 51 31 Core Hits 61 | 15 33 13 Critical Kills . | . . . Critical Parts Destroyed . | . . . Critical Strikes 3 | . 3 . Blast 3 | . 3 . Melee Attacks . | . . . Impact . | . . . Slashing . | . . . Piercing . | . . . Sneak Attacks . | . . . Combat Hostiles . | . . . Follow-up Attacks . | . . . Damage Inflicted 1816 | 276 1142 398 Guns 773 | 276 211 286 Cannons 428 | . 408 20 Explosions 614 | . 523 91 Melee . | . . . Ramming 1 | . . 1 Kinetic 1062 | 276 619 167 Thermal 139 | . . 139 Explosive 614 | . 523 91 Electromagnetic . | . . . Impact . | . . . Slashing . | . . . Piercing . | . . . Highest Corruption . | . . . Average Corruption . | . . . Corruption Purged . | . . . Corruption Blocked . | . . . Overload Shots . | . . . Overflow Damage 25 | . 25 . Projectiles 14 | . 14 . Explosions 11 | . 11 . Melee . | . . . Knockbacks 8 | . 6 2 Impact 1 | . . 1 Kinetic 6 | . 5 1 Secondary 1 | . 1 . Self-Inflicted Damage 56 | . 32 24 Shots 3 | . 2 1 Rammed . | . . . Targets Rammed 1 | . . 1 Kicked 1 | . . 1 Crushed . | . . . Highest Temperature 112 | . 48 112 Average Temperature 19 | . 15 27 Received Heat Transfer 426 | . 249 177 Siege Activations . | . . . Martial Activations . | . . . Shielding Activations . | . . . Robots Disrupted . | . . . Combat Hostiles . | . . . Robots Corrupted . | . . . Combat Hostiles . | . . . Parts Fried . | . . . Impact Corruptions . | . . . Robots Melted . | . . . Combat Hostiles . | . . . Parts Melted . | . . . Heat Transferred 325 | . . 325 Parts Sabotaged . | . . . Parts Stolen . | . . . Parts Stripped . | . . . Power Chain Reactions . | . . . Alert | -11 -10 -10 ------- Run | Yrd Mat Min Maximum Alert Level . | . . . Low Security (%) 100 | 100 100 100 Level 1 . | . . . Level 2 . | . . . Level 3 . | . . . Level 4 . | . . . Level 5 . | . . . High Security . | . . . Max Security . | . . . Peak Influence 182 | 5 182 55 Initial 16 | . . 16 Average 38 | 1 53 5 Influence Increases 613 | 40 463 110 Destroy 0b10 Robot/C 320 | . 240 80 Destroy 0b10 Robot/NC 70 | 40 25 5 Destroy Leader 86 | . 66 20 Successful Hack 27 | . 27 . Disable Machine 30 | . 30 . Destroy Structure 65 | . 60 5 Lose Combat Pursuer 15 | . 15 . Influence Decreases 558 | 40 419 99 Entered New Map 28 | . . 28 Time Decay 510 | 40 399 71 Lost Part 20 | . 20 . Squads Dispatched 4 | . 3 1 Investigation 1 | . 1 . Extermination . | . . . Reinforcement 2 | . 2 . Assault 1 | . . 1 Garrison . | . . . Intercept . | . . . Searches Triggered . | . . . Construction Impeded . | . . . Haulers Reinforced . | . . . Active Scanning Responses . | . . . Cargo Convoy Interrupts . | . . . Stealth | -11 -10 -10 --------- Run | Yrd Mat Min Distress Signals 1 | . 1 . Communications Jammed . | . . . Distress Signals . | . . . Times Spotted 32 | . 26 6 Peak Tracking Total 3 | . 3 3 Tactical Retreats 1 | . 1 . Traps | -11 -10 -10 ------- Run | Yrd Mat Min Traps Triggered 1 | . 1 . Indirectly . | . . . Trap Hack Attempts . | . . . Triggered . | . . . Disarmed . | . . . Reprogrammed . | . . . Reused . | . . . Traps Extracted . | . . . Installed . | . . . Triggered . | . . . Machines | -11 -10 -10 ---------- Run | Yrd Mat Min Machines Disabled 2 | . 2 . Max in Single Turn 1 | . 1 . Machines Repaired . | . . . Machines Dismantled . | . . . Machines Sabotaged . | . . . Overloaded Fab Kills . | . . . Hacking | -11 -10 -10 --------- Run | Yrd Mat Min Machines Accessed 8 | . 8 . Terminals 6 | . 6 . Fabricators . | . . . Repair Stations . | . . . Recycling Units 2 | . 2 . Scanalyzers . | . . . Garrison Access . | . . . Total Hacks 28 | . 28 . Successful 14 | . 14 . Failed 14 | . 14 . Catastrophic 1 | . 1 . Database Lockouts . | . . . Manual 20 | . 20 . Terminals 20 | . 20 . Fabricators . | . . . Repair Stations . | . . . Recycling Units 8 | . 8 . Scanalyzers . | . . . Garrison Access . | . . . Terminal Hacks 2 | . 2 . Robot Schematic 1 | . 1 . Branch Access Points 1 | . 1 . Fabricator Hacks . | . . . Repair Station Hacks . | . . . Recycling Unit Hacks 7 | . 7 . Process 2 | . 2 . Report Inventory 3 | . 3 . Retrieve Matter 2 | . 2 . Scanalyzer . | . . . Garrison Access Hacks . | . . . Unauthorized Hacks 5 | . 5 . Terminals 5 | . 5 . Skim 5 | . 5 . Fabricators . | . . . Repair Stations . | . . . Recycling Units . | . . . Scanalyzers . | . . . Garrison Access . | . . . Data Cores Recovered 1 | . 1 . Used . | . . . Hacking Detections 6 | . 6 . Full Trace Events 2 | . 2 . Feedback Events . | . . . Feedback Blocked . | . . . Robot Schematics Acquired 1 | . 1 . Robots Built . | . . . Authchips . | . . . Time . | . . . Total Robot Build Rating . | . . . Part Schematics Acquired . | . . . Parts Built . | . . . Authchips . | . . . Time . | . . . Total Part Build Rating . | . . . Part Studies Acquired . | . . . Parts Repaired . | . . . Time . | . . . Parts Recycled . | . . . Recycled Matter 366 | . 366 . Retrieved Matter 48 | . 48 . Retrieved Components . | . . . Parts Scanalyzed . | . . . Part Schematics Acquired . | . . . Parts Damaged . | . . . Bothacking | -11 -10 -10 ------------ Run | Yrd Mat Min Used RIF Installer . | . . . Robots Hacked . | . . . Non-combat . | . . . Combat . | . . . Robot Hacks Applied . | . . . Relay Couplers Released . | . . . Fabnet Peak Effective % . | . . . Robots Rewired . | . . . Allies Hacked . | . . . Hacks Repelled . | . . . Allies | -11 -10 -10 -------- Run | Yrd Mat Min Total Allies 1 | . . 1 Largest Group 1 | . . 1 Highest-Rated Group 31 | . . 31 Highest-Rated Ally 31 | . . 31 Total Orders . | . . . Ally Attacks 2 | . . 2 Total Damage 42 | . . 42 Kills . | . . . Allies Corrupted . | . . . Allies Melted . | . . . Intel | -11 -10 -10 ------- Run | Yrd Mat Min Active Infowar (turns) 2449 | 25 1894 530 Seismic 2449 | 25 1894 530 Robot Analysis Total . | . . . Derelict Logs Recovered 1 | . . 1 Drone Launches . | . . . Drone Recoveries . | . . . Exploration | -11 -10 -10 ------------- Run | Yrd Mat Min Turns Passed 2700 | 276 1894 530 Spaces Moved 1259 | 151 871 237 Core 23 | 23 . . Treads . | . . . Legs 1236 | 128 871 237 Wheels . | . . . Hover . | . . . Flight . | . . . Fastest Speed 50 | 50 120 190 Average Speed 142 | 114 133 190 Slowest Speed 200 | 200 190 190 Overloaded Moves . | . . . Propulsion Burnouts . | . . . Robots Hopped . | . . . Potential Cave-ins . | . . . Cave-ins Triggered . | . . . Exploration Rate (%) 50 | 7 97 48 Regions Visited 2 Branch Regions 1 Pre-discovered Areas . | . . . Known Exits Taken 1 | . 1 . Unknown Exits Taken 1 | 1 . . Scrap Searched 1 | . . 1 Spaces Dug 1 | . 1 . Terrain Destroyed 74 | . 69 5 Melee . | . . . Projectile 1 | . 1 . AOE 73 | . 68 5 Terrain Rammed . | . . . Walls Destroyed . | . . . Machines Disabled . | . . . Actions | -11 -10 -10 --------- Run | Yrd Mat Min Total 1965 | 199 1491 275 Wait 526 | . 523 3 Move 1257 | 150 870 237 Hop . | . . . Pick Up 24 | 9 12 3 Fast Attach 8 | 7 1 . Attach 5 | . 2 3 Detach . | . . . Swap 10 | . 7 3 Drop 12 | 1 11 . Fire 122 | 32 65 25 Melee . | . . . Ram . | . . . Kick 1 | . . 1 Crush . | . . . Escape Stasis . | . . . Rewire . | . . . Trap . | . . . Miscellaneous . | . . . Route ------- -11/Scrapyard -10/Materials (discovered 6 exits: [*Mat x3] / *Min x2 / Sub) -10/Mines (discovered 1 exit: [*Mat]) History --------- Turn | Location | Event 14 | -11/Scrapyard | Discovered new exit (range 15) 277 | -11/Scrapyard | Entered Materials 316 | -10/Materials | Build established: Mutant 559 | -10/Materials | Discovered new exit (range 13) 575 | -10/Materials | Identified exit to Mines 832 | -10/Materials | Discovered new exit (range 9) 1126 | -10/Materials | Discovered new exit (range 10) 1222 | -10/Materials | Core integrity fell below 50% 1447 | -10/Materials | Learned Storage trap positions 1510 | -10/Materials | Learned location of 2 exits from Subcaves 1562 | -10/Materials | Loaded intel: 8 terminal locations 1664 | -10/Materials | Learned 4 Recycling zone layouts 1679 | -10/Materials | Identified exit to Subcaves 1679 | -10/Materials | Learned location of 1 exit from Materials 1705 | -10/Materials | Learned Storage security intel 2171 | -10/Materials | Entered Mines 2313 | -10/Mines | Met a Derelict testing a Signal Generator 2322 | -10/Mines | Found Signal Generator 2404 | -10/Mines | Core integrity fell below 20% 2438 | -10/Mines | Lost 3 parts (1p1n1w) 2590 | -10/Mines | Learned location of 1 exit from Materials 2677 | -10/Mines | Discovered new exit (range 5) 2687 | -10/Mines | Build established: Scavenger-Mutant 2701 | -10/Mines | Destroyed by S-10 Pest with Light Assault Rifle Last Messages --------------- 02555_ K-01 Serf collects debris. 02561_ R-06 Scavenger collects Imp. Terrain Scanner. 02561_ K-01 Serf collects debris. 02573_ T-07 Excavator is excavating. 02577_ K-01 Serf collects debris. 02577_ T-07 Excavator is excavating. 02580_ K-01 Serf collects debris. 02586_ T-07 Excavator is excavating. 02586_ K-01 Serf collects debris. 02590_ Acquired derelict log, extracted data. Data stored: Materials exits (x1). 02590_ K-01 Serf collects debris. 02590_ T-07 Excavator is excavating. 02593_ K-01 Serf collects debris. 02595_ T-07 Excavator is excavating. 02596_ K-01 Serf collects debris. 02655_ T-07 Excavator is excavating. 02677_ EXIT=FOUND 02700_ S-10 Pest destroyed. Map ----- +----------------------------------------------------+ | ?????????????????????# ??####??????## | | ?????????????????????##?????????????# | | ????????????????????????????????????# | | ????????????????????????????????????# | | ????????????????????????????????????## | | ?????????????????????????????????????## | | ?????????????????????????????????????## | | ??????????????????????????????????#### ## | | ?????????????????????????????????## #### # | | ??????????????????????????######## ##??##### | | ??????????????????????????# #####???????? | | ??????????????????????????# ##???????????? | | ??????????????????????????# #########????????????? | | ????????????????????????### #????????????????????? | | ????????????????????????# #????????????????????? | | ????????????????????????# ###????????????????????? | | ????????????????????????# #??????????????????????? | | ??????????????????####### #??????????????????????? | | ??????????????????# #??????????????????????? | | ??????????????????## ### #??????????????????????? | | ???????????????????# ##?# #??????????????????????? | | ???????????????????##???# #?????" ???????????????? | | ????????????????????????# #????"" ???????????????? | | ????????????????????????# #???? #?????????????? | | ??????????????????????### ###?""" #?????????????? | | ?????????????????????## @ #?""" ###### ???????? | | ????????????????????## =""" ????????? | | ????????????????????# < %s #?????????????? | | ????????????????????# %[""" #?????????????? | | ???????????????????# """ #?????????????? | | ??????????????????# ## """ #?????????????? | | ??????????????????# #? #?????????????? | | ??????????????????## ## ##??######?????????????? | | ???????????????????###?###???????????????????????? | | ?????????????????????????????????????????????????? | | ?????????????????????????????????????????????????? | | | | | | | | | | | | | | | | | | | | | | | | | | | | | +----------------------------------------------------+ Best States ------------- Heat Dissipation 25 Energy Generation 14 Energy Capacity 160 Matter Stores 300 Matter Capacity 300 Sight Range 16 Terrain Scan Density 10 Evasion (%) 55 Item Schematics ----------------- None Robot Schematics ------------------ G-34 Mercenary | -10/Materials | Hacked Fabricated ------------ Nothing Repaired ---------- Nothing Studied --------- None Alien Tech Used ----------------- None Achievements -------------- root@ Challenges ------------ None Game ------ Seed RecoilNanofilamentsDetonator Manual? 0 Play Time 00:22:57 Cumulative 22.0 hours Start 2026.09.13 @ 21:12:28 End 2026.09.13 @ 21:33:08 Sessions 1 Manual Loads 0 Difficulty Rogue Special Mode None Game No. 45 Rogue 45 Adventurer 0 Explorer 0 Win Type - Total 0 Types 0/0/0/0/0/0/0/0/0/0 Lore% 32 Gallery% 18 Achievement% 16 Wizard Run 0 Options --------- Layout 2 ASCII 0 Keyboard 0 Movement Mouse Keybinds 0 Fullscreen 2 Font 24/Smallcaps Map View 50x44 Zoom Use 0% Tactical HUD 1 Map Filters NONE Filters NONE Steam 1 RUN: 26f8e626-7c01-431e-9bea-0faf285dedbe